[Event "*** Titled Tuesday Blitz"]
[Site "Chess.com"]
[Date "2019.02.05"]
[Round "8"]
[White "INLOVEWITHF"]
[Black "Mbneu"]
[Result "0-1"]
[WhiteElo "2285"]
[BlackElo "2273"]
[TimeControl "180+2"]
[EndTime "14:58:45 PST"]
[Termination "Mbneu won by resignation"]

1. e4 {[%clk 0:03:01.9]} 1... Nf6 {[%clk 0:02:59.8]} 2. e5 {[%clk 0:03:02]} 2...
Nd5 {[%clk 0:03:00.9]} 3. d4 {[%clk 0:03:02.3]} 3... d6 {[%clk 0:03:01.6]} 4.
Nf3 {[%clk 0:03:03.7]} 4... Bf5 {[%clk 0:03:01.1]} 5. Bc4 {[%clk 0:02:56.3]}
5... c6 {[%clk 0:02:55.8]} 6. O-O {[%clk 0:02:54.8]} 6... e6 {[%clk 0:02:53.5]}
7. Bb3 {[%clk 0:02:53.7]} 7... Nb6 {[%clk 0:02:52.1]} 8. c4 {[%clk 0:02:49.5]}
8... dxe5 {[%clk 0:02:43.1]} 9. Nxe5 {[%clk 0:02:44.5]} 9... Be7 {[%clk
0:02:40.6]} 10. Nc3 {[%clk 0:02:43.2]} 10... O-O {[%clk 0:02:40.5]} 11. Be3
{[%clk 0:02:43.7]} 11... N8d7 {[%clk 0:02:40]} 12. Qe2 {[%clk 0:02:37]} 12... c5
{[%clk 0:02:35.9]} 13. Nxd7 {[%clk 0:02:33.3]} 13... Nxd7 {[%clk 0:02:35.7]} 14.
dxc5 {[%clk 0:02:25.8]} 14... Nxc5 {[%clk 0:02:33.1]} 15. Bc2 {[%clk 0:02:26.6]}
15... Bxc2 {[%clk 0:02:24.2]} 16. Qxc2 {[%clk 0:02:28.5]} 16... a6 {[%clk
0:02:25.2]} 17. Rfd1 {[%clk 0:02:24.4]} 17... Qc7 {[%clk 0:02:24.3]} 18. b4
{[%clk 0:02:16.9]} 18... Nd7 {[%clk 0:02:24.6]} 19. c5 {[%clk 0:02:15.5]} 19...
Bf6 {[%clk 0:02:22.8]} 20. Rac1 {[%clk 0:02:10.5]} 20... Rfd8 {[%clk 0:02:22.8]}
21. Ne4 {[%clk 0:02:09.5]} 21... Be5 {[%clk 0:02:21.2]} 22. Nd6 {[%clk 0:02:10]}
22... Nf6 {[%clk 0:02:16.1]} 23. Bg5 {[%clk 0:02:02]} 23... Bxd6 {[%clk
0:01:39.5]} 24. cxd6 {[%clk 0:01:59.6]} 24... Qxc2 {[%clk 0:01:39.1]} 25. Rxc2
{[%clk 0:02:01.5]} 25... Rd7 {[%clk 0:01:31.5]} 26. Bxf6 {[%clk 0:01:22.3]}
26... gxf6 {[%clk 0:01:30.5]} 27. Rc7 {[%clk 0:00:58]} 27... Rad8 {[%clk
0:01:28.5]} 28. Rxd7 {[%clk 0:00:59.4]} 28... Rxd7 {[%clk 0:01:29.1]} 29. f4
{[%clk 0:01:00]} 29... Kf8 {[%clk 0:01:12.2]} 30. Kf2 {[%clk 0:01:00.4]} 30...
Ke8 {[%clk 0:01:12.7]} 31. Ke3 {[%clk 0:00:59.8]} 31... Rd8 {[%clk 0:01:13.7]}
32. Ke4 {[%clk 0:00:44.1]} 32... Kd7 {[%clk 0:01:14]} 33. f5 {[%clk 0:00:30.3]}
33... Kc6 {[%clk 0:01:09.4]} 34. fxe6 {[%clk 0:00:29.4]} 34... fxe6 {[%clk
0:01:09.7]} 35. Rf1 {[%clk 0:00:25.6]} 35... f5+ {[%clk 0:01:04.2]} 36. Ke5
{[%clk 0:00:26.3]} 36... Rxd6 {[%clk 0:01:04.9]} 37. Rc1+ {[%clk 0:00:25.1]}
37... Kd7 {[%clk 0:01:05.5]} 38. Kf6 {[%clk 0:00:23.2]} 38... Rd2 {[%clk
0:00:57]} 39. a4 {[%clk 0:00:23]} 39... Rxg2 {[%clk 0:00:52]} 40. Rd1+ {[%clk
0:00:23.2]} 40... Kc6 {[%clk 0:00:53.1]} 41. Kxe6 {[%clk 0:00:24.1]} 41... Rxh2
{[%clk 0:00:50.6]} 42. Rc1+ {[%clk 0:00:21.6]} 42... Kb6 {[%clk 0:00:50]} 43.
Kxf5 {[%clk 0:00:23.1]} 43... Rh4 {[%clk 0:00:46]} 44. a5+ {[%clk 0:00:23]}
44... Kb5 {[%clk 0:00:44.6]} 45. Rc7 {[%clk 0:00:23.5]} 45... Kxb4 {[%clk
0:00:45.8]} 46. Rxb7+ {[%clk 0:00:24.2]} 46... Kxa5 {[%clk 0:00:47]} 47. Kf6
{[%clk 0:00:24.5]} 47... Ka4 {[%clk 0:00:47.3]} 48. Kg5 {[%clk 0:00:24.1]} 48...
Rh1 {[%clk 0:00:47.3]} 49. Rb6 {[%clk 0:00:24.8]} 49... a5 {[%clk 0:00:48.1]}
50. Kg4 {[%clk 0:00:25.1]} 50... Ka3 {[%clk 0:00:48.9]} 51. Rb5 {[%clk
0:00:21.2]} 51... a4 {[%clk 0:00:50.1]} 52. Kg3 {[%clk 0:00:20.8]} 52... Ka2
{[%clk 0:00:50.5]} 53. Kg2 {[%clk 0:00:21]} 53... Rh6 {[%clk 0:00:49.3]} 54. Kg3
{[%clk 0:00:17.5]} 54... a3 {[%clk 0:00:50.3]} 55. Kg2 {[%clk 0:00:16.7]} 55...
Rc6 {[%clk 0:00:44.6]} 56. Kg3 {[%clk 0:00:11.3]} 56... Rc3+ {[%clk 0:00:44.5]}
57. Kg4 {[%clk 0:00:10.9]} 57... Rb3 {[%clk 0:00:45.8]} 58. Rh5 {[%clk
0:00:08.4]} 58... Rb7 {[%clk 0:00:41.1]} 59. Kf3 {[%clk 0:00:06.4]} 59... Kb3
{[%clk 0:00:39.7]} 60. Ra5 {[%clk 0:00:04.8]} 60... a2 {[%clk 0:00:39.2]} 61.
Rh5 {[%clk 0:00:04.4]} 0-1

[Event "*** Titled Tuesday Blitz"]
[Site "Chess.com"]
[Date "2019.02.05"]
[Round "8"]
[White "Jenia84"]
[Black "PowerThinking2650"]
[Result "0-1"]
[WhiteElo "2200"]
[BlackElo "2257"]
[TimeControl "180+2"]
[EndTime "14:58:45 PST"]
[Termination "PowerThinking2650 won by resignation"]

1. Nf3 {[%clk 0:03:01.9]} 1... Nf6 {[%clk 0:03:00.4]} 2. g3 {[%clk 0:02:58.4]}
2... g6 {[%clk 0:03:01.4]} 3. Bg2 {[%clk 0:02:58.1]} 3... Bg7 {[%clk 0:03:02.9]}
4. O-O {[%clk 0:02:59]} 4... O-O {[%clk 0:03:03.8]} 5. c4 {[%clk 0:02:59.6]}
5... d6 {[%clk 0:03:03.9]} 6. Nc3 {[%clk 0:03:00]} 6... e5 {[%clk 0:03:03.8]} 7.
e4 {[%clk 0:03:01]} 7... c5 {[%clk 0:03:03.6]} 8. a3 {[%clk 0:03:00.9]} 8... Nc6
{[%clk 0:03:04]} 9. Rb1 {[%clk 0:03:01.1]} 9... a5 {[%clk 0:03:04]} 10. d3
{[%clk 0:03:00.4]} 10... Bg4 {[%clk 0:02:57]} 11. h3 {[%clk 0:02:55.2]} 11...
Bxf3 {[%clk 0:02:57.9]} 12. Bxf3 {[%clk 0:02:48]} 12... Nd4 {[%clk 0:02:59.4]}
13. Bg2 {[%clk 0:02:48.6]} 13... Nd7 {[%clk 0:02:58.6]} 14. Be3 {[%clk
0:02:46.3]} 14... Nb8 {[%clk 0:02:57.3]} 15. f4 {[%clk 0:02:40.1]} 15... exf4
{[%clk 0:02:50.4]} 16. gxf4 {[%clk 0:02:32.3]} 16... Nbc6 {[%clk 0:02:46]} 17.
Nd5 {[%clk 0:02:14.8]} 17... a4 {[%clk 0:02:32.5]} 18. f5 {[%clk 0:02:09.5]}
18... f6 {[%clk 0:02:00.1]} 19. fxg6 {[%clk 0:02:04.4]} 19... hxg6 {[%clk
0:02:00.9]} 20. Qg4 {[%clk 0:02:03.4]} 20... Ne5 {[%clk 0:01:46.3]} 21. Qd1
{[%clk 0:01:59.2]} 21... Kh7 {[%clk 0:01:33]} 22. Bxd4 {[%clk 0:01:52.6]} 22...
cxd4 {[%clk 0:01:34.2]} 23. Nf4 {[%clk 0:01:51.8]} 23... Qd7 {[%clk 0:01:28.5]}
24. Qe1 {[%clk 0:01:47.4]} 24... Bh6 {[%clk 0:01:27.3]} 25. Qg3 {[%clk 0:01:46]}
25... Rf7 {[%clk 0:01:14.6]} 26. Nd5 {[%clk 0:01:42.5]} 26... Raf8 {[%clk
0:01:12.5]} 27. Bf3 {[%clk 0:01:40]} 27... f5 {[%clk 0:01:12.4]} 28. exf5 {[%clk
0:01:02.9]} 28... gxf5 {[%clk 0:01:11.5]} 29. Kh1 {[%clk 0:01:02.8]} 29... Qd8
{[%clk 0:01:04.3]} 30. Bh5 {[%clk 0:00:59.5]} 30... Rg7 {[%clk 0:01:05]} 31. Qf2
{[%clk 0:00:54.1]} 31... Qg5 {[%clk 0:01:02]} 32. Bf3 {[%clk 0:00:50]} 32...
Nxd3 {[%clk 0:00:55.1]} 33. Qxd4 {[%clk 0:00:48.1]} 33... Qg3 {[%clk 0:00:50.7]}
34. Bg4 {[%clk 0:00:35.3]} 34... fxg4 {[%clk 0:00:20.8]} 35. Rxf8 {[%clk
0:00:21.9]} 35... gxh3 {[%clk 0:00:18.5]} 36. Qe4+ {[%clk 0:00:19.1]} 36... Rg6
{[%clk 0:00:16.7]} 37. Rf7+ {[%clk 0:00:19.4]} 37... Bg7 {[%clk 0:00:17.3]} 38.
Nf6+ {[%clk 0:00:13.4]} 38... Kh6 {[%clk 0:00:18]} 39. Ng8+ {[%clk 0:00:13.7]}
39... Kh7 {[%clk 0:00:19]} 40. Nf6+ {[%clk 0:00:14.3]} 40... Kh6 {[%clk
0:00:16.3]} 41. Ng8+ {[%clk 0:00:15.2]} 41... Kh5 {[%clk 0:00:16]} 42. Qf5+
{[%clk 0:00:14]} 42... Rg5 {[%clk 0:00:13.1]} 43. Qh7+ {[%clk 0:00:14.4]} 43...
Kg4 {[%clk 0:00:13.1]} 44. Qe4+ {[%clk 0:00:14.6]} 44... Kh5 {[%clk 0:00:13.5]}
45. Qe2+ {[%clk 0:00:15.1]} 45... Kh4 {[%clk 0:00:11.4]} 46. Qe4+ {[%clk
0:00:14.8]} 46... Kh5 {[%clk 0:00:07.8]} 47. Qe2+ {[%clk 0:00:15.6]} 47... Rg4
{[%clk 0:00:07.2]} 48. Rf5+ {[%clk 0:00:15.2]} 48... Kh4 {[%clk 0:00:07.6]} 49.
Rf3 {[%clk 0:00:14.3]} 49... Qg2+ {[%clk 0:00:07.2]} 50. Qxg2 {[%clk 0:00:15.3]}
50... hxg2+ {[%clk 0:00:07.7]} 51. Kh2 {[%clk 0:00:16.1]} 51... Be5+ {[%clk
0:00:08.8]} 52. Kg1 {[%clk 0:00:17]} 52... Bd4+ {[%clk 0:00:10.1]} 53. Kh2
{[%clk 0:00:18.2]} 53... g1=Q+ {[%clk 0:00:10.8]} 54. Rxg1 {[%clk 0:00:18.5]}
54... Bxg1+ {[%clk 0:00:12.7]} 55. Kh1 {[%clk 0:00:19.5]} 55... Ne5 {[%clk
0:00:13.1]} 56. Rf1 {[%clk 0:00:17.1]} 56... Rxg8 {[%clk 0:00:10.6]} 57. Rxg1
{[%clk 0:00:18.1]} 57... Rxg1+ {[%clk 0:00:11.4]} 58. Kxg1 {[%clk 0:00:19.6]}
58... Kg3 {[%clk 0:00:13.3]} 0-1

[Event "*** Titled Tuesday Blitz"]
[Site "Chess.com"]
[Date "2019.02.05"]
[Round "8"]
[White "Zaven_ChessMood"]
[Black "IakovUlivar"]
[Result "1-0"]
[WhiteElo "2871"]
[BlackElo "2530"]
[TimeControl "180+2"]
[EndTime "14:58:48 PST"]
[Termination "Zaven_ChessMood won on time"]

1. e4 {[%clk 0:03:01.9]} 1... e5 {[%clk 0:02:58]} 2. Nf3 {[%clk 0:03:01.1]} 2...
Nc6 {[%clk 0:02:58.7]} 3. Bc4 {[%clk 0:03:01.2]} 3... Bc5 {[%clk 0:02:59.1]} 4.
O-O {[%clk 0:03:01]} 4... Nf6 {[%clk 0:02:59.2]} 5. d3 {[%clk 0:03:00.3]} 5...
d6 {[%clk 0:02:59.6]} 6. c3 {[%clk 0:03:00]} 6... h6 {[%clk 0:02:58.3]} 7. Bb3
{[%clk 0:02:59.5]} 7... O-O {[%clk 0:02:56.7]} 8. Nbd2 {[%clk 0:02:59]} 8... a5
{[%clk 0:02:53.8]} 9. h3 {[%clk 0:02:58.1]} 9... Be6 {[%clk 0:02:50.4]} 10. Nh2
{[%clk 0:02:54.7]} 10... Bxb3 {[%clk 0:02:42.7]} 11. axb3 {[%clk 0:02:55.1]}
11... d5 {[%clk 0:02:36]} 12. Qf3 {[%clk 0:02:53.3]} 12... Qd7 {[%clk
0:02:22.4]} 13. Re1 {[%clk 0:02:50.3]} 13... Rfd8 {[%clk 0:02:12.3]} 14. Ndf1
{[%clk 0:02:47.2]} 14... dxe4 {[%clk 0:02:05.3]} 15. dxe4 {[%clk 0:02:47.1]}
15... Qd3 {[%clk 0:02:01.1]} 16. Qxd3 {[%clk 0:02:26.8]} 16... Rxd3 {[%clk
0:02:03]} 17. b4 {[%clk 0:02:24.2]} 17... Bb6 {[%clk 0:01:48.8]} 18. Nf3 {[%clk
0:02:25.3]} 18... Re8 {[%clk 0:01:35]} 19. bxa5 {[%clk 0:02:24]} 19... Nxa5
{[%clk 0:01:34.2]} 20. N1d2 {[%clk 0:02:22.3]} 20... Nc6 {[%clk 0:01:27]} 21.
Nc4 {[%clk 0:02:19.5]} 21... Bc5 {[%clk 0:01:13.5]} 22. Kf1 {[%clk 0:02:20.3]}
22... b5 {[%clk 0:01:08.3]} 23. Ncd2 {[%clk 0:01:48.3]} 23... Bb6 {[%clk
0:00:56]} 24. Nb3 {[%clk 0:01:47.2]} 24... Rd6 {[%clk 0:00:48.5]} 25. Be3 {[%clk
0:01:44.8]} 25... Bxe3 {[%clk 0:00:42.5]} 26. Rxe3 {[%clk 0:01:45.5]} 26... Nd7
{[%clk 0:00:44.1]} 27. Ne1 {[%clk 0:01:39.6]} 27... Nb6 {[%clk 0:00:39.4]} 28.
Re2 {[%clk 0:01:35.7]} 28... Nc4 {[%clk 0:00:37]} 29. Nc5 {[%clk 0:01:33.1]}
29... Rb8 {[%clk 0:00:26.9]} 30. Ned3 {[%clk 0:01:20.7]} 30... f6 {[%clk
0:00:23.1]} 31. b3 {[%clk 0:01:19.1]} 31... Nb6 {[%clk 0:00:24.2]} 32. Rea2
{[%clk 0:01:16.1]} 32... Nd7 {[%clk 0:00:21.5]} 33. Ke2 {[%clk 0:01:12.7]} 33...
Nxc5 {[%clk 0:00:18.8]} 34. Nxc5 {[%clk 0:01:13.9]} 34... b4 {[%clk 0:00:18.3]}
35. c4 {[%clk 0:01:07.6]} 35... Nd4+ {[%clk 0:00:17.4]} 36. Kf1 {[%clk
0:01:06.3]} 36... Rc6 {[%clk 0:00:17.2]} 37. Ra5 {[%clk 0:01:00.1]} 37... Kh7
{[%clk 0:00:18.3]} 38. R1a2 {[%clk 0:00:44.5]} 38... Kg6 {[%clk 0:00:17.1]} 39.
f3 {[%clk 0:00:41.3]} 39... h5 {[%clk 0:00:18]} 40. h4 {[%clk 0:00:37.4]} 40...
Kh7 {[%clk 0:00:18.2]} 41. Kf2 {[%clk 0:00:37.2]} 41... Kg6 {[%clk 0:00:19.4]}
42. Rb2 {[%clk 0:00:32.5]} 42... Rd8 {[%clk 0:00:10.1]} 43. Ke3 {[%clk
0:00:30.3]} 43... Kf7 {[%clk 0:00:08.6]} 44. Nd3 {[%clk 0:00:30.8]} 44... Rb6
{[%clk 0:00:07.9]} 45. f4 {[%clk 0:00:31.6]} 45... exf4+ {[%clk 0:00:04.8]} 46.
Nxf4 {[%clk 0:00:32.8]} 46... Nc6 {[%clk 0:00:03.4]} 47. Rxh5 {[%clk 0:00:32.6]}
47... Ne5 {[%clk 0:00:04.2]} 48. Nd5 {[%clk 0:00:32.3]} 48... Rb7 {[%clk
0:00:02.8]} 49. Rf2 {[%clk 0:00:29.2]} 49... c6 {[%clk 0:00:03.2]} 50. Rxe5
{[%clk 0:00:29.7]} 50... cxd5 {[%clk 0:00:04.6]} 51. Rxd5 {[%clk 0:00:30.9]}
51... Ra8 {[%clk 0:00:04]} 52. Kf4 {[%clk 0:00:31]} 52... Ra3 {[%clk 0:00:04.2]}
53. Rf3 {[%clk 0:00:32.3]} 53... Ke6 {[%clk 0:00:04.5]} 54. g4 {[%clk 0:00:31]}
54... Rc7 {[%clk 0:00:03.7]} 55. h5 {[%clk 0:00:31.1]} 55... Rb7 {[%clk
0:00:04.5]} 56. Rfd3 {[%clk 0:00:31.5]} 56... Rb6 {[%clk 0:00:05]} 57. Rb5
{[%clk 0:00:30.5]} 57... Rxb5 {[%clk 0:00:05.2]} 58. cxb5 {[%clk 0:00:31.8]}
58... Ra5 {[%clk 0:00:05.5]} 59. Rd5 {[%clk 0:00:32.2]} 59... Ra3 {[%clk
0:00:05.6]} 60. b6 {[%clk 0:00:33.4]} 1-0

[Event "*** Titled Tuesday Blitz"]
[Site "Chess.com"]
[Date "2019.02.05"]
[Round "8"]
[White "ruvat"]
[Black "PotapovaM"]
[Result "1-0"]
[WhiteElo "2304"]
[BlackElo "2408"]
[TimeControl "180+2"]
[EndTime "14:58:54 PST"]
[Termination "ruvat won by resignation"]

1. d4 {[%clk 0:03:01.9]} 1... Nf6 {[%clk 0:02:59.7]} 2. c4 {[%clk 0:03:02.3]}
2... c5 {[%clk 0:02:57.8]} 3. d5 {[%clk 0:03:02.5]} 3... b5 {[%clk 0:02:58.9]}
4. Nf3 {[%clk 0:03:03.4]} 4... d6 {[%clk 0:02:57.3]} 5. Qc2 {[%clk 0:03:03.2]}
5... bxc4 {[%clk 0:02:56.3]} 6. e4 {[%clk 0:03:03.7]} 6... Nbd7 {[%clk
0:02:55.5]} 7. Bxc4 {[%clk 0:03:01.5]} 7... g6 {[%clk 0:02:56.3]} 8. b3 {[%clk
0:03:01.7]} 8... Bg7 {[%clk 0:02:57.2]} 9. Bb2 {[%clk 0:03:02.5]} 9... O-O
{[%clk 0:02:58]} 10. Nbd2 {[%clk 0:03:02.6]} 10... Nb6 {[%clk 0:02:55]} 11. h3
{[%clk 0:03:00.8]} 11... e6 {[%clk 0:02:54.9]} 12. dxe6 {[%clk 0:02:53.8]} 12...
fxe6 {[%clk 0:02:56.8]} 13. e5 {[%clk 0:02:42.5]} 13... dxe5 {[%clk 0:02:54.8]}
14. O-O {[%clk 0:02:27.6]} 14... Bb7 {[%clk 0:02:46.6]} 15. Bxe6+ {[%clk
0:02:21.9]} 15... Kh8 {[%clk 0:02:46.2]} 16. Nxe5 {[%clk 0:02:17.8]} 16... Qe7
{[%clk 0:02:39.1]} 17. Bc4 {[%clk 0:02:17.5]} 17... Nxc4 {[%clk 0:02:30.7]} 18.
Ndxc4 {[%clk 0:02:17]} 18... Be4 {[%clk 0:02:30.8]} 19. Qe2 {[%clk 0:02:14.1]}
19... Qc7 {[%clk 0:02:06.9]} 20. Rad1 {[%clk 0:02:04.6]} 20... Bf5 {[%clk
0:01:57.9]} 21. Nd6 {[%clk 0:01:50.1]} 21... Bc8 {[%clk 0:01:30.9]} 22. Rfe1
{[%clk 0:01:27.3]} 22... a5 {[%clk 0:01:30.5]} 23. Nef7+ {[%clk 0:01:10.9]}
23... Rxf7 {[%clk 0:01:24.8]} 24. Nxf7+ {[%clk 0:01:07.2]} 24... Qxf7 {[%clk
0:01:25.1]} 25. Rd8+ {[%clk 0:01:07.5]} 25... Ng8 {[%clk 0:01:13.6]} 26. Qd2
{[%clk 0:00:56.3]} 26... a4 {[%clk 0:00:33.2]} 27. Ree8 {[%clk 0:00:51.9]} 27...
Bb7 {[%clk 0:00:24]} 28. Rxa8 {[%clk 0:00:29.5]} 28... Bxa8 {[%clk 0:00:23.8]}
29. Rxa8 {[%clk 0:00:30.4]} 29... axb3 {[%clk 0:00:11.1]} 30. Bxg7+ {[%clk
0:00:30.2]} 30... Kxg7 {[%clk 0:00:11.9]} 31. Qc3+ {[%clk 0:00:30.5]} 31... Nf6
{[%clk 0:00:12.6]} 32. axb3 {[%clk 0:00:30.3]} 32... Qb7 {[%clk 0:00:11]} 33.
Rd8 {[%clk 0:00:24.8]} 33... Qc7 {[%clk 0:00:11.1]} 34. Rd3 {[%clk 0:00:19.5]}
34... Kf7 {[%clk 0:00:11.9]} 35. Rf3 {[%clk 0:00:20.1]} 35... Qc6 {[%clk
0:00:12.7]} 36. Kf1 {[%clk 0:00:19.3]} 36... Ke7 {[%clk 0:00:13.3]} 37. Rxf6
{[%clk 0:00:19.8]} 37... Qxf6 {[%clk 0:00:14.1]} 38. Qxf6+ {[%clk 0:00:20.9]}
38... Kxf6 {[%clk 0:00:16]} 39. Ke2 {[%clk 0:00:22.1]} 39... Ke5 {[%clk
0:00:16.7]} 40. Kd3 {[%clk 0:00:23.2]} 40... Kd5 {[%clk 0:00:17.1]} 41. Kc3
{[%clk 0:00:23.8]} 41... h5 {[%clk 0:00:15.1]} 42. Kd3 {[%clk 0:00:21.2]} 42...
h4 {[%clk 0:00:13.8]} 43. Kc3 {[%clk 0:00:20.7]} 43... g5 {[%clk 0:00:14.6]} 44.
Kd3 {[%clk 0:00:21.4]} 44... Kd6 {[%clk 0:00:12.7]} 45. Kc4 {[%clk 0:00:20.7]}
45... Kc6 {[%clk 0:00:14]} 46. Kd3 {[%clk 0:00:15.6]} 46... Kd5 {[%clk
0:00:15.1]} 47. Ke3 {[%clk 0:00:14.7]} 47... Ke5 {[%clk 0:00:14.4]} 48. g3
{[%clk 0:00:13]} 48... g4 {[%clk 0:00:13.7]} 49. gxh4 {[%clk 0:00:12.3]} 49...
gxh3 {[%clk 0:00:14.6]} 50. Kf3 {[%clk 0:00:13.4]} 50... Kd4 {[%clk 0:00:14.5]}
51. h5 {[%clk 0:00:13.9]} 51... Kc3 {[%clk 0:00:15.8]} 52. h6 {[%clk 0:00:15]}
52... h2 {[%clk 0:00:16.3]} 53. Kg2 {[%clk 0:00:15]} 53... Kxb3 {[%clk
0:00:17.5]} 54. h7 {[%clk 0:00:16]} 54... c4 {[%clk 0:00:18]} 55. h8=Q {[%clk
0:00:16.3]} 55... c3 {[%clk 0:00:19.9]} 56. Qb8+ {[%clk 0:00:16]} 56... Ka2
{[%clk 0:00:20.4]} 57. Qc7 {[%clk 0:00:16.3]} 57... Kb2 {[%clk 0:00:21.5]} 58.
Qb6+ {[%clk 0:00:17.2]} 58... Kc1 {[%clk 0:00:22.6]} 59. Kxh2 {[%clk 0:00:17.4]}
59... c2 {[%clk 0:00:24.5]} 60. f4 {[%clk 0:00:18.3]} 60... Kd1 {[%clk
0:00:25.6]} 61. Qg1+ {[%clk 0:00:17.8]} 1-0

[Event "*** Titled Tuesday Blitz"]
[Site "Chess.com"]
[Date "2019.02.05"]
[Round "8"]
[White "cherryandmint"]
[Black "David_Klein"]
[Result "0-1"]
[WhiteElo "2617"]
[BlackElo "2605"]
[TimeControl "180+2"]
[EndTime "14:59:08 PST"]
[Termination "David_Klein won by resignation"]

1. e4 {[%clk 0:03:01.9]} 1... g6 {[%clk 0:03:00.8]} 2. d4 {[%clk 0:03:01.6]}
2... Bg7 {[%clk 0:03:02.2]} 3. Nf3 {[%clk 0:02:59.1]} 3... d6 {[%clk 0:03:00.4]}
4. Bc4 {[%clk 0:02:53.2]} 4... c6 {[%clk 0:02:58.2]} 5. O-O {[%clk 0:02:53.7]}
5... Nf6 {[%clk 0:02:57.2]} 6. Qe2 {[%clk 0:02:52]} 6... d5 {[%clk 0:02:54.8]}
7. exd5 {[%clk 0:02:52.6]} 7... cxd5 {[%clk 0:02:55.9]} 8. Bb5+ {[%clk
0:02:53.1]} 8... Bd7 {[%clk 0:02:55.1]} 9. Ne5 {[%clk 0:02:53.2]} 9... O-O
{[%clk 0:02:55.7]} 10. Nxd7 {[%clk 0:02:53.8]} 10... Nbxd7 {[%clk 0:02:56.7]}
11. c3 {[%clk 0:02:54.6]} 11... e6 {[%clk 0:02:57]} 12. Bf4 {[%clk 0:02:54.2]}
12... Nb6 {[%clk 0:02:51.9]} 13. Nd2 {[%clk 0:02:54.5]} 13... Ne8 {[%clk
0:02:50.4]} 14. Bd3 {[%clk 0:02:53.5]} 14... Nd6 {[%clk 0:02:50.5]} 15. a4
{[%clk 0:02:52.5]} 15... Rc8 {[%clk 0:02:50]} 16. Rfb1 {[%clk 0:02:38.6]} 16...
a6 {[%clk 0:02:49.7]} 17. Nf3 {[%clk 0:02:38.5]} 17... Nbc4 {[%clk 0:02:45.6]}
18. b3 {[%clk 0:02:37.3]} 18... Na5 {[%clk 0:02:39.4]} 19. Bd2 {[%clk 0:02:38]}
19... Nc6 {[%clk 0:02:34.3]} 20. Re1 {[%clk 0:02:30.9]} 20... Qd7 {[%clk
0:02:11.6]} 21. Bf4 {[%clk 0:02:30.4]} 21... Rfe8 {[%clk 0:02:03.6]} 22. Qb2
{[%clk 0:02:29.2]} 22... Nf5 {[%clk 0:01:57.9]} 23. Rad1 {[%clk 0:02:25.5]}
23... Nd6 {[%clk 0:01:58.7]} 24. h4 {[%clk 0:02:24.3]} 24... Nf5 {[%clk
0:01:55.5]} 25. h5 {[%clk 0:02:22.5]} 25... Bh6 {[%clk 0:01:49.5]} 26. Bxh6
{[%clk 0:02:17.6]} 26... Nxh6 {[%clk 0:01:50.4]} 27. Qd2 {[%clk 0:02:17.7]}
27... Kg7 {[%clk 0:01:44.8]} 28. Ng5 {[%clk 0:01:19.4]} 28... Qe7 {[%clk
0:01:35.9]} 29. b4 {[%clk 0:01:00.7]} 29... Qf6 {[%clk 0:01:35]} 30. Nf3 {[%clk
0:00:37.3]} 30... Ng4 {[%clk 0:01:20.5]} 31. b5 {[%clk 0:00:19.5]} 31... axb5
{[%clk 0:01:21]} 32. axb5 {[%clk 0:00:20.4]} 32... Na5 {[%clk 0:01:14]} 33. Ne5
{[%clk 0:00:21.9]} 33... Nxe5 {[%clk 0:01:12.2]} 34. dxe5 {[%clk 0:00:19.2]}
34... Qh4 {[%clk 0:01:13.3]} 35. hxg6 {[%clk 0:00:14.6]} 35... hxg6 {[%clk
0:01:14.1]} 36. g3 {[%clk 0:00:16]} 36... Qh5 {[%clk 0:01:03.7]} 37. Bf1 {[%clk
0:00:11.4]} 37... Rh8 {[%clk 0:00:58.2]} 38. Bg2 {[%clk 0:00:12.6]} 38... Qf5
{[%clk 0:00:59.3]} 39. Qa2 {[%clk 0:00:10.1]} 39... Nc4 {[%clk 0:00:57.6]} 40.
Rd4 {[%clk 0:00:10]} 40... Nxe5 {[%clk 0:00:50.6]} 41. Rf4 {[%clk 0:00:10.9]}
41... Qg5 {[%clk 0:00:48.5]} 42. Qe2 {[%clk 0:00:11.6]} 42... Nc4 {[%clk
0:00:45.9]} 43. Qf3 {[%clk 0:00:09.5]} 43... Rcf8 {[%clk 0:00:40]} 44. Qd3
{[%clk 0:00:10.7]} 44... Rd8 {[%clk 0:00:38.6]} 45. Qf3 {[%clk 0:00:06.1]} 45...
Rhf8 {[%clk 0:00:38.7]} 46. Rg4 {[%clk 0:00:06]} 46... Qf6 {[%clk 0:00:39.2]}
47. Rf4 {[%clk 0:00:07.3]} 47... Qg5 {[%clk 0:00:39.5]} 48. Rg4 {[%clk
0:00:08.5]} 48... Qh5 {[%clk 0:00:39.9]} 49. Qf4 {[%clk 0:00:05.6]} 49... Qf5
{[%clk 0:00:39.8]} 50. Qd4+ {[%clk 0:00:06.2]} 50... Qf6 {[%clk 0:00:39.8]} 51.
Qd1 {[%clk 0:00:05]} 51... Qxc3 {[%clk 0:00:36.8]} 52. Rd4 {[%clk 0:00:06.2]}
52... Nd6 {[%clk 0:00:31.9]} 53. Rd3 {[%clk 0:00:07.1]} 53... Qb4 {[%clk
0:00:29.4]} 54. Qa1+ {[%clk 0:00:07.4]} 54... Kg8 {[%clk 0:00:30.3]} 55. Rb1
{[%clk 0:00:08.6]} 55... Qc4 {[%clk 0:00:30]} 56. Rc3 {[%clk 0:00:09.8]} 56...
Qd4 {[%clk 0:00:30.5]} 57. Rd1 {[%clk 0:00:11.2]} 57... Qf6 {[%clk 0:00:31.5]}
58. b6 {[%clk 0:00:10.5]} 58... Nf5 {[%clk 0:00:23.8]} 59. Qc1 {[%clk
0:00:06.9]} 59... Rd6 {[%clk 0:00:23.6]} 60. Rb3 {[%clk 0:00:05.4]} 60... Nd4
{[%clk 0:00:22.5]} 61. Rb2 {[%clk 0:00:05.6]} 61... Rxb6 {[%clk 0:00:20.5]} 62.
Rbd2 {[%clk 0:00:06.3]} 62... Nb3 {[%clk 0:00:21]} 0-1